Cogmind - Beta 15 @@@ ROGUE MODE // 2025.05.13 @ 15:57:23 Player: anthonyiye Result: Destroyed by TV-O07(R) with Subdweller Machine Gun Performance ------------- Evolutions (0) 0 Regions Visited (2) 400 Robots Destroyed (19) 95 Value Destroyed (349) 349 Prototype IDs (0) 0 Alien Tech Used (0) 0 Bonus (0) 0 TOTAL SCORE: 844 Bonus ------- None Cogmind --------- Core Integrity 0/250 Matter 245/300 Energy 100/100 System Corruption 0% Temperature Cool (0) Movement Rolling (80) Location -10/Subcaves Parts ------- > --- POWER (1) -------- (None) > --- PROPULSION (2) --- Wheel > --- UTILITY (2) ------ Small Storage Unit Structural Scanner > --- WEAPON (2) ------- (None) > --- INVENTORY (8) ---- Ion Engine Light Nuclear Core Improved Heat Sink Seismic Detector Light Cannon Grenade Launcher Welding Torch Peak State ------------ > --- POWER ------------ Ion Engine > --- PROPULSION ------- Light Treads Light Treads > --- UTILITY ---------- Small Storage Unit Improved Terrain Scanner > --- WEAPON ----------- Medium Laser Light Assault Rifle > --- INVENTORY -------- Ion Engine Aluminum Leg Aluminum Leg Wheel Wheel Light Assault Rifle [Rating: 9] Favorites ----------- Power Ion Engine Engine Ion Engine Propulsion Light Treads Treads Light Treads Wheel Wheel Utility Small Storage Unit Device Seismic Detector Storage Small Storage Unit Weapon Light Cannon Energy Gun Medium Laser Ballistic Gun Light Assault Rifle Ballistic Cannon Light Cannon Build | -11 -10 -10 ------- Run | Yrd Mat Sub Slots Evolved . | . . . Power . | . . . Propulsion . | . . . Utility . | . . . Weapon . | . . . Parts Attached 14 | 8 5 1 Power 2 | 1 1 . Engine 2 | 1 1 . Core . | . . . Reactor . | . . . Propulsion 3 | 2 . 1 Treads 2 | 2 . . Leg . | . . . Wheel 1 | . . 1 Hover . | . . . Flight . | . . . Utility 4 | 3 1 . Device 3 | 2 1 . Storage 1 | 1 . . Processor . | . . . Hackware . | . . . Protection . | . . . Artifact . | . . . Weapon 5 | 2 3 . Energy Gun 1 | 1 . . Energy Cannon . | . . . Ballistic Gun 1 | 1 . . Ballistic Cannon 3 | . 3 . Launcher . | . . . Special Weapon . | . . . Impact Weapon . | . . . Slashing Weapon . | . . . Piercing Weapon . | . . . Special Melee Weapon . | . . . Unidentified Prototypes . | . . . Parts Lost 7 | . 2 5 Power 2 | . 1 1 Propulsion 2 | . . 2 Utility . | . . . Weapon 3 | . 1 2 Highest Loss Streak 5 | . 1 5 To Critical Strikes 1 | . 1 . Average Backups 7 | 4 7 7 Power 1 | . 2 2 Propulsion 2 | 2 2 . Utility 1 | . 1 2 Weapon 1 | . 1 2 Tool/Special . | . . . Unused Backups 12 | . 6 6 Power 3 | . 1 2 Propulsion 3 | . 3 . Utility 1 | . . 1 Weapon 4 | . 2 2 Tool/Special 1 | . . 1 Average Slot Usage (%) 93 | . 95 86 Engine 13 | . 13 10 Treads 26 | . 28 21 Device 14 | . 14 14 Storage 14 | . 14 14 Energy Gun 6 | . 8 . Ballistic Gun 5 | . 6 . Ballistic Cannon 12 | . 9 23 Peak Build Rating 9 | 9 8 8 Average Rating 7 | 4 7 7 On Entrance 5 | . 8 8 Naked Turns . | . . . Heaviest Build 16 | 14 16 15 Greatest Support 40 | 40 40 40 Greatest Overweight (x) 1 | 1 . . Average Overweight (x) . | . . . Largest Inventory Capacity 8 | 8 8 8 Average Capacity 7 | 6 8 8 Most Carried 8 | 8 8 8 Average Carried 7 | 4 7 7 Final Capacity 8 | 8 8 8 Final Carried 8 | 8 8 7 Class Distribution -------------------- 100% | Mutant Dominant Class ---------------- Mutant | -10/Materials Mutant | -10/Subcaves Resources | -11 -10 -10 ----------- Run | Yrd Mat Sub Matter Collected 479 | 288 149 42 Remotely . | . . . Salvage Created 450 | 110 309 31 Parts 37 | 10 22 5 Haulers Intercepted . | . . . Recyclers Shooed . | . . . Parts Field Recycled . | . . . Retrieved Matter . | . . . Parts Self-Destructed 5 | . . 5 Prevented . | . . . Kills | -11 -10 -10 ------- Run | Yrd Mat Sub Combat Hostiles Destroyed 12 | . 9 3 Guns 3 | . 3 . Cannons 9 | . 6 3 Classes Destroyed 8 | 3 5 . Worker 2 | 2 . . Builder 1 | . 1 . Tunneler 1 | 1 . . Recycler 1 | 1 . . Operator 1 | . 1 . Watcher 1 | . 1 . Swarmer 6 | . 3 3 Grunt 6 | . 6 . Best Kill Streak 3 | 3 3 3 Combat Bots Only 3 | . 3 3 Max Kills in Single Turn 1 | 1 1 1 Gunslinging . | . . . Exploded . | . . . Melee . | . . . Uniques/NPCs Destroyed . | . . . Combat | -11 -10 -10 -------- Run | Yrd Mat Sub Hostile Shots Fired 98 | . 58 40 Missed 23 | . 16 7 Hits 75 | . 42 33 Projectile 75 | . 42 33 Critical Strikes 3 | . 2 1 Damage Taken 1110 | . 516 594 Core 256 | . 120 136 Absorbed by Shields . | . . . Core Remaining (%) 100 | 100 . . Volleys Fired 70 | 8 48 14 Largest 2 | 2 2 2 Hottest 80 | 70 80 60 Shots Fired 130 | 16 86 28 Gun 82 | 16 66 . Cannon 48 | . 20 28 Launcher . | . . . Special . | . . . Kinetic 85 | 8 49 28 Thermal 45 | 8 37 . Explosive . | . . . Electromagnetic . | . . . Robot Hit Streak 5 | 5 5 5 Robot Miss Streak 5 | 1 5 2 Penetration Max . | . . . Secondary Targets . | . . . Shots Hit Robots 75 | 10 47 18 Core Hits 33 | 6 22 5 Critical Kills . | . . . Critical Parts Destroyed . | . . . Critical Strikes 2 | . 2 . Burn 2 | . 2 . Melee Attacks . | . . . Impact . | . . . Slashing . | . . . Piercing . | . . . Sneak Attacks . | . . . Combat Hostiles . | . . . Follow-up Attacks . | . . . Damage Inflicted 1017 | 103 599 315 Guns 474 | 103 371 . Cannons 543 | . 228 315 Explosions . | . . . Melee . | . . . Ramming . | . . . Kinetic 692 | 42 335 315 Thermal 325 | 61 264 . Explosive . | . . . Electromagnetic . | . . . Impact . | . . . Slashing . | . . . Piercing . | . . . Highest Corruption . | . . . Average Corruption . | . . . Corruption Purged . | . . . Corruption Blocked . | . . . Overload Shots . | . . . Overflow Damage . | . . . Projectiles . | . . . Explosions . | . . . Melee . | . . . Knockbacks 4 | . 3 1 Impact . | . . . Kinetic 4 | . 3 1 Secondary . | . . . Self-Inflicted Damage . | . . . Shots . | . . . Rammed . | . . . Targets Rammed . | . . . Kicked . | . . . Crushed . | . . . Highest Temperature 126 | 70 126 . Average Temperature 39 | 30 41 . Received Heat Transfer 261 | . 180 81 Siege Activations . | . . . Martial Activations . | . . . Shielding Activations . | . . . Robots Disrupted . | . . . Combat Hostiles . | . . . Robots Corrupted . | . . . Combat Hostiles . | . . . Parts Fried . | . . . Impact Corruptions . | . . . Robots Melted . | . . . Combat Hostiles . | . . . Parts Melted 1 | . 1 . Heat Transferred 1110 | 185 925 . Parts Sabotaged . | . . . Parts Stolen . | . . . Parts Stripped . | . . . Power Chain Reactions . | . . . Alert | -11 -10 -10 ------- Run | Yrd Mat Sub Maximum Alert Level . | . . . Low Security (%) 100 | 100 100 . Level 1 . | . . . Level 2 . | . . . Level 3 . | . . . Level 4 . | . . . Level 5 . | . . . High Security . | . . . Max Security . | . . . Peak Influence 80 | 5 80 . Initial . | . . . Average 19 | 1 23 . Influence Increases 398 | 20 308 70 Destroy 0b10 Robot/C 240 | . 180 60 Destroy 0b10 Robot/NC 35 | 20 15 . Destroy Leader 62 | . 52 10 Successful Hack 16 | . 16 . Disable Machine 30 | . 30 . Lose Combat Pursuer 15 | . 15 . Influence Decreases 398 | 20 287 91 Entered New Map 11 | . . 11 Time Decay 357 | 20 267 70 Lost Part 30 | . 20 10 Squads Dispatched 4 | . 4 . Investigation 2 | . 2 . Extermination . | . . . Reinforcement 2 | . 2 . Assault . | . . . Garrison . | . . . Intercept . | . . . Searches Triggered . | . . . Construction Impeded . | . . . Haulers Reinforced . | . . . Active Scanning Responses . | . . . Cargo Convoy Interrupts . | . . . Stealth | -11 -10 -10 --------- Run | Yrd Mat Sub Distress Signals . | . . . Communications Jammed . | . . . Distress Signals . | . . . Times Spotted 28 | . 24 4 Peak Tracking Total 6 | . 6 2 Tactical Retreats 3 | . 3 . Traps | -11 -10 -10 ------- Run | Yrd Mat Sub Traps Triggered 1 | . 1 . Indirectly . | . . . Trap Hack Attempts . | . . . Triggered . | . . . Disarmed . | . . . Reprogrammed . | . . . Reused . | . . . Traps Extracted . | . . . Installed . | . . . Triggered . | . . . Machines | -11 -10 -10 ---------- Run | Yrd Mat Sub Machines Disabled 2 | . 2 . Max in Single Turn 1 | . 1 . Machines Repaired . | . . . Machines Dismantled . | . . . Machines Sabotaged . | . . . Overloaded Fab Kills . | . . . Hacking | -11 -10 -10 --------- Run | Yrd Mat Sub Machines Accessed 5 | . 5 . Terminals 5 | . 5 . Fabricators . | . . . Repair Stations . | . . . Recycling Units . | . . . Scanalyzers . | . . . Garrison Access . | . . . Total Hacks 14 | . 14 . Successful 9 | . 9 . Failed 5 | . 5 . Catastrophic . | . . . Database Lockouts . | . . . Manual 8 | . 8 . Terminals 14 | . 14 . Fabricators . | . . . Repair Stations . | . . . Recycling Units . | . . . Scanalyzers . | . . . Garrison Access . | . . . Terminal Hacks 3 | . 3 . Emergency Access Points 1 | . 1 . Transport Status 1 | . 1 . Zone Layout 1 | . 1 . Fabricator Hacks . | . . . Repair Station Hacks . | . . . Recycling Unit Hacks . | . . . Scanalyzer . | . . . Garrison Access Hacks . | . . . Unauthorized Hacks 6 | . 6 . Terminals 6 | . 6 . Assimilate 1 | . 1 . Botnet 4 | . 4 . Operators 1 | . 1 . Fabricators . | . . . Repair Stations . | . . . Recycling Units . | . . . Scanalyzers . | . . . Garrison Access . | . . . Data Cores Recovered . | . . . Used . | . . . Hacking Detections 5 | . 5 . Full Trace Events 1 | . 1 . Feedback Events . | . . . Feedback Blocked . | . . . Robot Schematics Acquired . | . . . Robots Built . | . . . Authchips . | . . . Time . | . . . Total Robot Build Rating . | . . . Part Schematics Acquired . | . . . Parts Built . | . . . Authchips . | . . . Time . | . . . Total Part Build Rating . | . . . Parts Repaired . | . . . Time . | . . . Parts Recycled . | . . . Recycled Matter . | . . . Retrieved Matter . | . . . Retrieved Components . | . . . Parts Scanalyzed . | . . . Part Schematics Acquired . | . . . Parts Damaged . | . . . Bothacking | -11 -10 -10 ------------ Run | Yrd Mat Sub Used RIF Installer . | . . . Robots Hacked . | . . . Non-combat . | . . . Combat . | . . . Robot Hacks Applied . | . . . Relay Couplers Released . | . . . Fabnet Peak Effective % . | . . . Robots Rewired . | . . . Allies Hacked . | . . . Hacks Repelled . | . . . Allies | -11 -10 -10 -------- Run | Yrd Mat Sub Total Allies . | . . . Largest Group . | . . . Highest-Rated Group . | . . . Highest-Rated Ally . | . . . Total Orders . | . . . Ally Attacks . | . . . Total Damage . | . . . Kills . | . . . Allies Corrupted . | . . . Allies Melted . | . . . Intel | -11 -10 -10 ------- Run | Yrd Mat Sub Active Infowar (turns) 1096 | 35 848 213 Terrain 4 | 4 . . Structural 229 | . 16 213 Seismic 863 | 31 832 . Robot Analysis Total . | . . . Derelict Logs Recovered . | . . . Drone Launches . | . . . Drone Recoveries . | . . . Exploration | -11 -10 -10 ------------- Run | Yrd Mat Sub Turns Passed 1272 | 210 849 213 Spaces Moved 625 | 109 390 126 Core 5 | 5 . . Treads 580 | 104 390 86 Legs . | . . . Wheels 40 | . . 40 Hover . | . . . Flight . | . . . Fastest Speed 50 | 50 160 80 Average Speed 154 | 155 160 134 Slowest Speed 160 | 160 160 160 Overloaded Moves . | . . . Propulsion Burnouts . | . . . Robots Hopped . | . . . Potential Cave-ins . | . . . Cave-ins Triggered . | . . . Exploration Rate (%) 24 | 6 48 19 Regions Visited 2 Branch Regions 1 Pre-discovered Areas . | . . . Known Exits Taken . | . . . Unknown Exits Taken 2 | 1 1 . Scrap Searched . | . . . Spaces Dug . | . . . Terrain Destroyed . | . . . Melee . | . . . Projectile . | . . . AOE . | . . . Terrain Rammed . | . . . Walls Destroyed . | . . . Machines Disabled . | . . . Actions | -11 -10 -10 --------- Run | Yrd Mat Sub Total 811 | 132 538 141 Wait 79 | . 79 . Move 623 | 108 389 126 Hop . | . . . Pick Up 14 | 7 7 . Fast Attach 12 | 8 4 . Attach 1 | . . 1 Detach 1 | 1 . . Swap 1 | . 1 . Drop 10 | . 10 . Fire 70 | 8 48 14 Melee . | . . . Ram . | . . . Kick . | . . . Crush . | . . . Escape Stasis . | . . . Rewire . | . . . Trap . | . . . Miscellaneous . | . . . Route ------- -11/Scrapyard -10/Materials (discovered 3 exits: [Mat] / [Min] / [*Sub]) -10/Subcaves History --------- Turn | Location | Event 9 | -11/Scrapyard | Discovered new exit (range 15) 211 | -11/Scrapyard | Entered Materials 307 | -10/Materials | Build established: Mutant 640 | -10/Materials | Discovered new exit (range 17) 640 | -10/Materials | Discovered new exit (range 20) 711 | -10/Materials | Derelicts attacked the area 1026 | -10/Materials | Discovered new exit (range 7) 1060 | -10/Materials | Entered Subcaves 1061 | -10/Subcaves | Approached by a straggling Scientist 1071 | -10/Subcaves | Core integrity fell below 50% 1237 | -10/Subcaves | Core integrity fell below 20% 1271 | -10/Subcaves | Lost 5 parts (1p2n2w) 1273 | -10/Subcaves | Destroyed by TV-O07(R) with Subdweller Machine Gun Last Messages --------------- all the Subs lurking out here." 01066_ S-10 Pest knocked back. 01073_ Lgt. Ion Engine fries itself beyond repair. 01075_ S-10 Pest destroyed. 01082_ Lgt. Assault Rifle fries itself beyond repair. 01083_ Acquired 16 matter. 01090_ Subatomizers dissect the Flight Unit. 01092_ Flight Unit fries itself beyond repair. 01142_ Acquired 13 matter. 01155_ Acquired 5 matter. 01212_ Subatomizers dissect the Machine Analyzer. 01213_ Acquired 8 matter. 01216_ Lgt. Treads destroyed. 01221_ Lgt. Ion Engine destroyed. 01223_ Lgt. Treads destroyed. 01239_ Lgt. Cannon destroyed. Map ----- +----------------------------------------------------+ | ?????????????????????????????????????????????????? | | ?????????????????????????????????????????????????? | | ?????????????????????????????????????????????????? | | ?????????????????????????????????????????????????? | | ?????????????????????????????????????????????????? | | ?????????????????????????????????????????????????? | | ?????????????????????????????????????????????????? | | ?????????????????????????????????????????????????? | | ?????????????????????????????????????????????????? | | ?????????????????????????????????????????????????? | | ???????????????????????????????? ?????????????? | | ???????????????????????????????? ?????????????? | | ???????????????????????????????? #????????????? | | ??????????????????????????????# ##????????????? | | ?????????????????????????????### ##????????????? | | ?????????????????????????????### ##????????????? | | ?????????????????????????????## ##????????????? | | ????????????????????????####### ##????????????? | | ????????????????????????####### ##??####??????? | | ???????????????????????### ### ##??#####?????? | | ???????????????????????### ### ###?? #######?? | | ???????????????????????## ### ##?? #######? | | ????????????????#####?### R ##? ###? | | ???????????????########## R## #### ##? | | ??????????????#### ##### ### #### ##? | | ??????????????### #### @ #### ## =##? | | ??????????????## ##### ##### ##?? ? | | ??????????????### ### #### ##?????? | | ??????????????#### ## ##?????? | | ???????????????#### ## ##?????? | | ????????????????### ### ##?????? | | ?????????????????## ##% % ######????? | | ?????????????????### ### ######????? | | ?????????????????####### ### % ## ### ###???? | | ??????????????????####### ### ## ### ### ??? | | ??????????????????????### ### ## ## ## ?? | | ???????????????????????###### ## ?? | | ????????????????????????##### ###? | | ??????????????????????????##### #### | | ???????????####???###???####### % ### | | ??????????#####???## ?#### ## | | ??????????### %# # ### ### # | | ??????????## # ## ### # #### | | ??????????## # #### % ! | | ??????????## ### #### ####" ###%! | | ??????????#### # ### ### ####"% #### | | ????????????###? ### ######?## %% ### ? | | ??????????????????## ######?####### ### | | ?????????????????? #### ########??#### ### | | ?????????????????? ### # ######?#### #### | +----------------------------------------------------+ Best States ------------- Heat Dissipation 25 Energy Generation 10 Energy Capacity 250 Matter Stores 300 Matter Capacity 300 Sight Range 16 Terrain Scan Density 10 Evasion (%) 44 Recoil Reduction 2 Item Schematics ----------------- None Robot Schematics ------------------ None Fabricated ------------ Nothing Repaired ---------- Nothing Alien Tech Used ----------------- None Achievements -------------- None Challenges ------------ None Game ------ Seed KineticIonicAutobeam Manual? 0 Play Time 00:10:10 Cumulative 54.5 hours Start 2025.05.09 @ 16:50:46 End 2025.05.13 @ 15:57:23 Sessions 4 Manual Loads 0 Difficulty Rogue Special Mode None Game No. 44 Rogue 44 Adventurer 0 Explorer 0 Win Type - Total 1 Types 1/0/0/0/0/0/0/0/0/0 Lore% 35 Gallery% 38 Achievement% 37 Wizard Run 0 Options --------- Layout 1 ASCII 0 Keyboard 1 Movement Arrows Keybinds 0 Fullscreen 1 Font 32/SmallcapsGlow Map View 50x35 Zoom Use 0% Tactical HUD 1 Map Filters NONE Filters NONE Steam 1 RUN: d18cda24-0693-4c9b-b0d7-b8bac37df31c